[Event "Late-Titled-Tuesday-Blitz-October-17-2023"]
[Site "Chess.com"]
[Date "2023.10.17"]
[Round "8"]
[White "Defenstrator"]
[Black "maurovargas01"]
[Result "1-0"]
[WhiteElo "2407"]
[BlackElo "1905"]
[TimeControl "180+1"]
[EndTime "15:24:49 PDT"]
[Termination "Defenstrator won on time"]

1. d4 {[%clk 0:02:59.3]} 1... d5 {[%clk 0:02:47.5]} 2. c4 {[%clk 0:02:55.8]}
2... c6 {[%clk 0:02:46.7]} 3. Nf3 {[%clk 0:02:55.1]} 3... Bg4 {[%clk 0:02:42.2]}
4. Ne5 {[%clk 0:02:42.6]} 4... Bh5 {[%clk 0:02:39.9]} 5. Qb3 {[%clk 0:02:16.8]}
5... Qb6 {[%clk 0:02:23.7]} 6. Qh3 {[%clk 0:02:17.3]} 6... Nf6 {[%clk
0:02:06.2]} 7. Qc8+ {[%clk 0:02:13.1]} 7... Qd8 {[%clk 0:02:04.1]} 8. Qxb7
{[%clk 0:02:11.5]} 8... Nbd7 {[%clk 0:01:52.5]} 9. Nxc6 {[%clk 0:02:04.8]} 9...
Qc8 {[%clk 0:01:46.7]} 10. Qxc8+ {[%clk 0:01:44.1]} 10... Rxc8 {[%clk
0:01:45.3]} 11. Nxa7 {[%clk 0:01:44.4]} 11... Rxc4 {[%clk 0:01:45]} 12. Nc3
{[%clk 0:01:44.5]} 12... Ne4 {[%clk 0:01:43.8]} 13. e3 {[%clk 0:01:39]} 13... e6
{[%clk 0:01:35.9]} 14. Bxc4 {[%clk 0:01:34.1]} 14... dxc4 {[%clk 0:01:35.1]} 15.
Nxe4 {[%clk 0:01:34.6]} 15... Be7 {[%clk 0:01:21]} 16. Nc6 {[%clk 0:01:33.9]}
16... Bg6 {[%clk 0:00:56.9]} 17. Nd2 {[%clk 0:01:31.3]} 17... Bd6 {[%clk
0:00:54.1]} 18. Nxc4 {[%clk 0:01:30.9]} 18... Bc7 {[%clk 0:00:43]} 19. N6e5
{[%clk 0:01:10.7]} 19... Bh5 {[%clk 0:00:34.4]} 20. Nxd7 {[%clk 0:01:03]} 20...
Kxd7 {[%clk 0:00:33.9]} 21. Bd2 {[%clk 0:01:01.1]} 21... Rb8 {[%clk 0:00:32]}
22. a4 {[%clk 0:00:57.3]} 22... Bg6 {[%clk 0:00:24.6]} 23. a5 {[%clk 0:00:57]}
23... Bd3 {[%clk 0:00:24]} 24. Nb6+ {[%clk 0:00:55.8]} 24... Kd8 {[%clk
0:00:15.8]} 25. Bc3 {[%clk 0:00:54.1]} 25... Rb7 {[%clk 0:00:14.8]} 26. Kd2
{[%clk 0:00:53.9]} 26... Bb5 {[%clk 0:00:14.2]} 27. a6 {[%clk 0:00:51.7]} 27...
Ra7 {[%clk 0:00:13.5]} 28. Na4 {[%clk 0:00:48.3]} 28... Rxa6 {[%clk 0:00:11.4]}
29. Nc5 {[%clk 0:00:48.7]} 29... Rd6 {[%clk 0:00:09]} 30. Nb7+ {[%clk
0:00:48.2]} 30... Kd7 {[%clk 0:00:07.2]} 31. Nxd6 {[%clk 0:00:47.6]} 31... Bxd6
{[%clk 0:00:08.1]} 32. Ra7+ {[%clk 0:00:47.5]} 32... Kc6 {[%clk 0:00:07.7]} 33.
Rc1 {[%clk 0:00:46.9]} 33... Kb6 {[%clk 0:00:07.7]} 34. Rxf7 {[%clk 0:00:45.6]}
1-0

[Event "Late-Titled-Tuesday-Blitz-October-17-2023"]
[Site "Chess.com"]
[Date "2023.10.17"]
[Round "8"]
[White "GM_dmitrij"]
[Black "vladislavkovalev"]
[Result "1-0"]
[WhiteElo "3039"]
[BlackElo "2874"]
[TimeControl "180+1"]
[EndTime "15:24:50 PDT"]
[Termination "GM_dmitrij won by resignation"]

1. c4 {[%clk 0:03:00.7]} 1... Nf6 {[%clk 0:02:57.7]} 2. Nc3 {[%clk 0:03:00.7]}
2... d6 {[%clk 0:02:54.3]} 3. d4 {[%clk 0:02:58.5]} 3... Nbd7 {[%clk 0:02:54.4]}
4. e4 {[%clk 0:02:57.2]} 4... e5 {[%clk 0:02:54.7]} 5. Nf3 {[%clk 0:02:57.8]}
5... a6 {[%clk 0:02:53.8]} 6. Be2 {[%clk 0:02:54.5]} 6... exd4 {[%clk
0:02:50.4]} 7. Nxd4 {[%clk 0:02:54.8]} 7... g6 {[%clk 0:02:51.1]} 8. O-O {[%clk
0:02:52.9]} 8... Bg7 {[%clk 0:02:51.8]} 9. Be3 {[%clk 0:02:43.2]} 9... O-O
{[%clk 0:02:52.1]} 10. Qd2 {[%clk 0:02:42.6]} 10... Rb8 {[%clk 0:02:49.7]} 11.
f3 {[%clk 0:02:33.2]} 11... Ne5 {[%clk 0:02:41.1]} 12. Rad1 {[%clk 0:02:28.4]}
12... Re8 {[%clk 0:02:39.6]} 13. a4 {[%clk 0:02:21.8]} 13... Bd7 {[%clk
0:02:21.4]} 14. b3 {[%clk 0:02:16.4]} 14... h5 {[%clk 0:01:50.3]} 15. Bg5 {[%clk
0:02:13.7]} 15... c5 {[%clk 0:01:32.2]} 16. Nc2 {[%clk 0:02:12]} 16... Re6
{[%clk 0:01:24.8]} 17. Nd5 {[%clk 0:02:01.5]} 17... b5 {[%clk 0:01:14.2]} 18.
axb5 {[%clk 0:01:55.4]} 18... axb5 {[%clk 0:01:15.1]} 19. Nf4 {[%clk 0:01:55.1]}
19... Nxe4 {[%clk 0:00:43.8]} 20. Nxe6 {[%clk 0:01:17.7]} 20... Nxd2 {[%clk
0:00:43]} 21. Nxd8 {[%clk 0:01:13.8]} 21... Nxf1 {[%clk 0:00:43.2]} 22. f4
{[%clk 0:01:02.5]} 22... bxc4 {[%clk 0:00:37.5]} 23. bxc4 {[%clk 0:01:02.4]}
23... Rb2 {[%clk 0:00:09.1]} 24. fxe5 {[%clk 0:00:56.1]} 24... Rxc2 {[%clk
0:00:09.5]} 25. Bd3 {[%clk 0:00:52.7]} 25... Rb2 {[%clk 0:00:03.6]} 26. exd6
{[%clk 0:00:50.7]} 26... Bd4+ {[%clk 0:00:01.9]} 27. Kxf1 {[%clk 0:00:49.1]}
27... Bg4 {[%clk 0:00:02]} 28. Nc6 {[%clk 0:00:37.4]} 28... Rf2+ {[%clk
0:00:02.3]} 29. Ke1 {[%clk 0:00:37]} 29... Bxd1 {[%clk 0:00:02.1]} 30. Nxd4
{[%clk 0:00:35.7]} 30... Rxg2 {[%clk 0:00:02]} 31. d7 {[%clk 0:00:35]} 1-0

[Event "Late-Titled-Tuesday-Blitz-October-17-2023"]
[Site "Chess.com"]
[Date "2023.10.17"]
[Round "8"]
[White "KaydenTroffChess"]
[Black "gahryman"]
[Result "0-1"]
[WhiteElo "2817"]
[BlackElo "2689"]
[TimeControl "180+1"]
[EndTime "15:24:57 PDT"]
[Termination "gahryman won by resignation"]

1. d4 {[%clk 0:03:00.9]} 1... Nf6 {[%clk 0:02:59.5]} 2. c4 {[%clk 0:03:00.8]}
2... e6 {[%clk 0:02:55.6]} 3. Nf3 {[%clk 0:03:00.2]} 3... d5 {[%clk 0:02:55.2]}
4. g3 {[%clk 0:03:00.4]} 4... Bb4+ {[%clk 0:02:47.7]} 5. Bd2 {[%clk 0:03:00.1]}
5... Be7 {[%clk 0:02:47.4]} 6. Bg2 {[%clk 0:03:00]} 6... O-O {[%clk 0:02:46.7]}
7. O-O {[%clk 0:02:59.1]} 7... c6 {[%clk 0:02:43.5]} 8. Qc2 {[%clk 0:02:56.8]}
8... h6 {[%clk 0:02:43.3]} 9. Rc1 {[%clk 0:02:46.3]} 9... Nbd7 {[%clk
0:02:34.7]} 10. Be1 {[%clk 0:02:43.7]} 10... b6 {[%clk 0:01:46.3]} 11. Nbd2
{[%clk 0:02:42.5]} 11... Bb7 {[%clk 0:01:46.2]} 12. e4 {[%clk 0:02:41.7]} 12...
dxe4 {[%clk 0:01:45.9]} 13. Nxe4 {[%clk 0:02:42.6]} 13... c5 {[%clk 0:01:46.5]}
14. Nc3 {[%clk 0:02:18.2]} 14... Bxf3 {[%clk 0:01:37.5]} 15. Bxf3 {[%clk
0:02:17.7]} 15... cxd4 {[%clk 0:01:38.4]} 16. Bxa8 {[%clk 0:01:45.1]} 16... Qxa8
{[%clk 0:01:39.3]} 17. Nb1 {[%clk 0:01:18.8]} 17... d3 {[%clk 0:01:38]} 18. Qd1
{[%clk 0:01:09.1]} 18... Ne5 {[%clk 0:01:34.7]} 19. Nd2 {[%clk 0:01:09.1]} 19...
Ne4 {[%clk 0:01:27.3]} 20. f3 {[%clk 0:00:16.7]} 20... Nxd2 {[%clk 0:01:17.9]}
21. Bxd2 {[%clk 0:00:17.6]} 21... Nxf3+ {[%clk 0:01:17.7]} 22. Kf2 {[%clk
0:00:18.2]} 22... Nxd2 {[%clk 0:01:09.7]} 23. c5 {[%clk 0:00:11.3]} 23... Bxc5+
{[%clk 0:01:08.2]} 24. Rxc5 {[%clk 0:00:09.7]} 24... Ne4+ {[%clk 0:01:08.4]} 25.
Ke3 {[%clk 0:00:10.3]} 25... Nxc5 {[%clk 0:01:08.7]} 26. Qf3 {[%clk 0:00:10.1]}
26... Qxf3+ {[%clk 0:01:07.9]} 27. Kxf3 {[%clk 0:00:11]} 27... e5 {[%clk
0:01:08.3]} 28. b4 {[%clk 0:00:11.1]} 28... Ne6 {[%clk 0:01:07.3]} 29. Ke4
{[%clk 0:00:10.4]} 29... Rd8 {[%clk 0:01:07.4]} 30. Rd1 {[%clk 0:00:09.8]} 30...
d2 {[%clk 0:01:07.9]} 31. Kxe5 {[%clk 0:00:09.7]} 31... Nd4 {[%clk 0:01:06]} 32.
Ke4 {[%clk 0:00:08.5]} 32... Ne2 {[%clk 0:01:02.7]} 33. Ke3 {[%clk 0:00:08.9]}
33... Nc3 {[%clk 0:01:02.2]} 34. Rxd2 {[%clk 0:00:09.5]} 34... Rxd2 {[%clk
0:01:01.7]} 35. Kxd2 {[%clk 0:00:10.4]} 35... Nxa2 {[%clk 0:01:01.8]} 36. b5
{[%clk 0:00:11.1]} 36... Nb4 {[%clk 0:01:01.7]} 37. Kc3 {[%clk 0:00:11.3]} 37...
Nd5+ {[%clk 0:01:01.8]} 38. Kd4 {[%clk 0:00:11.6]} 38... Nc7 {[%clk 0:01:02.1]}
39. Kc4 {[%clk 0:00:12.2]} 39... Nxb5 {[%clk 0:01:02.6]} 40. Kxb5 {[%clk
0:00:12.2]} 40... a5 {[%clk 0:01:03.5]} 41. Kc4 {[%clk 0:00:13.1]} 41... Kf8
{[%clk 0:01:02.9]} 42. Kb5 {[%clk 0:00:14]} 42... Ke7 {[%clk 0:01:02.9]} 43. Kc4
{[%clk 0:00:14.9]} 43... f5 {[%clk 0:01:03.3]} 44. Kb3 {[%clk 0:00:15.8]} 44...
Kf6 {[%clk 0:01:03.7]} 45. Kc3 {[%clk 0:00:16.4]} 45... g5 {[%clk 0:01:04]} 46.
Kd3 {[%clk 0:00:17.3]} 46... b5 {[%clk 0:01:04.3]} 47. Ke3 {[%clk 0:00:18.2]}
47... b4 {[%clk 0:01:04.7]} 48. Kf3 {[%clk 0:00:19.1]} 48... a4 {[%clk 0:01:05]}
49. h4 {[%clk 0:00:19.5]} 49... h5 {[%clk 0:01:04.1]} 50. Kf2 {[%clk 0:00:18.2]}
50... gxh4 {[%clk 0:01:03.9]} 51. Kg2 {[%clk 0:00:17]} 51... Ke5 {[%clk
0:01:04.3]} 52. Kh3 {[%clk 0:00:17.9]} 52... b3 {[%clk 0:01:04.5]} 53. Kxh4
{[%clk 0:00:18.4]} 53... b2 {[%clk 0:01:04.9]} 54. Kh3 {[%clk 0:00:19.3]} 54...
b1=Q {[%clk 0:01:03.2]} 55. Kh4 {[%clk 0:00:20.2]} 55... a3 {[%clk 0:01:02.8]}
56. g4 {[%clk 0:00:19.1]} 56... hxg4 {[%clk 0:01:02]} 0-1

[Event "Late-Titled-Tuesday-Blitz-October-17-2023"]
[Site "Chess.com"]
[Date "2023.10.17"]
[Round "8"]
[White "KNVB"]
[Black "TheMagician"]
[Result "1-0"]
[WhiteElo "2616"]
[BlackElo "2218"]
[TimeControl "180+1"]
[EndTime "15:24:59 PDT"]
[Termination "KNVB won by checkmate"]

1. d4 {[%clk 0:03:00.9]} 1... Nf6 {[%clk 0:02:59.7]} 2. Nc3 {[%clk 0:02:56.2]}
2... d5 {[%clk 0:02:59.1]} 3. Bf4 {[%clk 0:02:53.1]} 3... c6 {[%clk 0:02:57.8]}
4. e3 {[%clk 0:02:51.2]} 4... g6 {[%clk 0:02:56]} 5. h3 {[%clk 0:02:35.9]} 5...
Bg7 {[%clk 0:02:53.3]} 6. Nf3 {[%clk 0:02:36]} 6... O-O {[%clk 0:02:52.3]} 7.
Be2 {[%clk 0:02:35.5]} 7... a5 {[%clk 0:02:41.5]} 8. O-O {[%clk 0:02:27.4]} 8...
a4 {[%clk 0:02:41.6]} 9. a3 {[%clk 0:02:06.8]} 9... b6 {[%clk 0:02:40.8]} 10.
Ne5 {[%clk 0:02:02]} 10... Ba6 {[%clk 0:02:35]} 11. Bxa6 {[%clk 0:01:48.9]}
11... Rxa6 {[%clk 0:02:34.2]} 12. Qd3 {[%clk 0:01:32.9]} 12... b5 {[%clk
0:02:33.6]} 13. b3 {[%clk 0:01:33.6]} 13... axb3 {[%clk 0:02:31.8]} 14. cxb3
{[%clk 0:01:34.5]} 14... Qc8 {[%clk 0:02:24.2]} 15. Rfc1 {[%clk 0:01:21.5]}
15... Qb7 {[%clk 0:02:20.1]} 16. a4 {[%clk 0:01:22.2]} 16... b4 {[%clk
0:02:14.7]} 17. Na2 {[%clk 0:00:52.1]} 17... Rc8 {[%clk 0:01:48]} 18. Qc2 {[%clk
0:00:26.2]} 18... e6 {[%clk 0:01:42.7]} 19. Nd3 {[%clk 0:00:25.4]} 19... Bf8
{[%clk 0:01:36.1]} 20. Nc5 {[%clk 0:00:12]} 20... Bxc5 {[%clk 0:01:35.1]} 21.
Qxc5 {[%clk 0:00:12.9]} 21... Rb6 {[%clk 0:01:31.8]} 22. Qc2 {[%clk 0:00:02.1]}
22... Nfd7 {[%clk 0:01:29.5]} 23. Qd2 {[%clk 0:00:01.6]} 23... c5 {[%clk
0:01:25.4]} 24. Bxb8 {[%clk 0:00:01.6]} 24... Qxb8 {[%clk 0:01:21.9]} 25. Rab1
{[%clk 0:00:01.7]} 25... c4 {[%clk 0:01:19.6]} 26. bxc4 {[%clk 0:00:02]} 26...
b3 {[%clk 0:01:20.1]} 27. c5 {[%clk 0:00:02]} 27... bxa2 {[%clk 0:01:11.1]} 28.
cxb6 {[%clk 0:00:02.5]} 28... axb1=Q {[%clk 0:01:10.2]} 29. Rxb1 {[%clk
0:00:03.4]} 29... Nxb6 {[%clk 0:01:06.1]} 30. a5 {[%clk 0:00:03.5]} 30... Rc6
{[%clk 0:00:57.1]} 31. Qb4 {[%clk 0:00:02.4]} 31... Qc8 {[%clk 0:00:53]} 32.
axb6 {[%clk 0:00:02.2]} 32... Rc1+ {[%clk 0:00:52.9]} 33. Rxc1 {[%clk
0:00:02.3]} 33... Qxc1+ {[%clk 0:00:52.5]} 34. Kh2 {[%clk 0:00:03.1]} 34... Qc8
{[%clk 0:00:51.7]} 35. Qd6 {[%clk 0:00:03.2]} 35... Kg7 {[%clk 0:00:46.7]} 36.
Qc7 {[%clk 0:00:03.2]} 36... Qa6 {[%clk 0:00:45.5]} 37. b7 {[%clk 0:00:03.4]}
37... Qe2 {[%clk 0:00:46.4]} 38. Qg3 {[%clk 0:00:03.3]} 38... Qb2 {[%clk
0:00:44]} 39. b8=Q {[%clk 0:00:03.7]} 39... Qb7 {[%clk 0:00:44.5]} 40. Qge5+
{[%clk 0:00:03.3]} 40... f6 {[%clk 0:00:43.5]} 41. Qxb7+ {[%clk 0:00:03.5]}
41... Kh6 {[%clk 0:00:44.4]} 42. Qf4+ {[%clk 0:00:03.9]} 42... g5 {[%clk
0:00:44.4]} 43. Qxf6+ {[%clk 0:00:04.5]} 43... Kh5 {[%clk 0:00:45.1]} 44. Qxh7#
{[%clk 0:00:05.2]} 1-0

[Event "Late-Titled-Tuesday-Blitz-October-17-2023"]
[Site "Chess.com"]
[Date "2023.10.17"]
[Round "8"]
[White "zverr1"]
[Black "ferdipy"]
[Result "1-0"]
[WhiteElo "2509"]
[BlackElo "2367"]
[TimeControl "180+1"]
[EndTime "15:24:59 PDT"]
[Termination "zverr1 won by checkmate"]

1. e4 {[%clk 0:02:57.7]} 1... e6 {[%clk 0:02:59.5]} 2. d4 {[%clk 0:02:57.5]}
2... d5 {[%clk 0:02:58.1]} 3. Nc3 {[%clk 0:02:58.4]} 3... Bb4 {[%clk 0:02:45.5]}
4. Ne2 {[%clk 0:02:57.1]} 4... Nf6 {[%clk 0:02:44.1]} 5. Bg5 {[%clk 0:02:48.9]}
5... h6 {[%clk 0:02:42.6]} 6. Bh4 {[%clk 0:02:32.3]} 6... dxe4 {[%clk
0:02:39.9]} 7. a3 {[%clk 0:02:30.7]} 7... Be7 {[%clk 0:02:39.6]} 8. Bxf6 {[%clk
0:02:29.3]} 8... Bxf6 {[%clk 0:02:39.9]} 9. Nxe4 {[%clk 0:02:30.2]} 9... Be7
{[%clk 0:02:31.7]} 10. Qd3 {[%clk 0:02:23.1]} 10... Nd7 {[%clk 0:02:30.9]} 11.
O-O-O {[%clk 0:02:22.8]} 11... Nf6 {[%clk 0:02:29.6]} 12. N2c3 {[%clk
0:02:20.5]} 12... Bd7 {[%clk 0:02:28.5]} 13. d5 {[%clk 0:02:06.6]} 13... exd5
{[%clk 0:02:24.7]} 14. Nxf6+ {[%clk 0:01:59.9]} 14... Bxf6 {[%clk 0:02:20.5]}
15. Nxd5 {[%clk 0:01:58.5]} 15... Be6 {[%clk 0:02:15.2]} 16. Nxf6+ {[%clk
0:01:30.7]} 16... Qxf6 {[%clk 0:02:16.1]} 17. Qb5+ {[%clk 0:01:31.2]} 17... c6
{[%clk 0:02:09.1]} 18. Qb4 {[%clk 0:00:58.7]} 18... Qxf2 {[%clk 0:01:29]} 19.
Qd6 {[%clk 0:00:41.6]} 19... Qb6 {[%clk 0:01:10.1]} 20. Bc4 {[%clk 0:00:20.6]}
20... Rd8 {[%clk 0:00:38.4]} 21. Qe5 {[%clk 0:00:17.9]} 21... O-O {[%clk
0:00:32]} 22. Bxe6 {[%clk 0:00:17.9]} 22... fxe6 {[%clk 0:00:32.9]} 23. Qxe6+
{[%clk 0:00:18.4]} 23... Kh8 {[%clk 0:00:33.8]} 24. Kb1 {[%clk 0:00:15.4]} 24...
Rde8 {[%clk 0:00:31.2]} 25. Qg4 {[%clk 0:00:11.5]} 25... Re5 {[%clk 0:00:28.4]}
26. Rd7 {[%clk 0:00:06.4]} 26... Rg5 {[%clk 0:00:29]} 27. Qe4 {[%clk 0:00:04.8]}
27... Rd8 {[%clk 0:00:17.1]} 28. Rhd1 {[%clk 0:00:04.3]} 28... Rxd7 {[%clk
0:00:15.1]} 29. Rxd7 {[%clk 0:00:05.2]} 29... Qg1+ {[%clk 0:00:15]} 30. Ka2
{[%clk 0:00:05.2]} 30... Qxg2 {[%clk 0:00:15.5]} 31. Rd8# {[%clk 0:00:05]} 1-0

[Event "Late-Titled-Tuesday-Blitz-October-17-2023"]
[Site "Chess.com"]
[Date "2023.10.17"]
[Round "8"]
[White "GianmarcoVaR"]
[Black "sjoerd893"]
[Result "1-0"]
[WhiteElo "2698"]
[BlackElo "2528"]
[TimeControl "180+1"]
[EndTime "15:25:07 PDT"]
[Termination "GianmarcoVaR won on time"]

1. e4 {[%clk 0:02:59.5]} 1... c5 {[%clk 0:02:56.1]} 2. Nf3 {[%clk 0:02:58.9]}
2... Nc6 {[%clk 0:02:55.5]} 3. Bb5 {[%clk 0:02:55.3]} 3... g6 {[%clk 0:02:53.3]}
4. O-O {[%clk 0:02:53.7]} 4... Bg7 {[%clk 0:02:53.1]} 5. Re1 {[%clk 0:02:49.4]}
5... Nf6 {[%clk 0:02:46.9]} 6. c3 {[%clk 0:02:43.8]} 6... O-O {[%clk 0:02:29.7]}
7. d4 {[%clk 0:02:38.1]} 7... cxd4 {[%clk 0:02:28.2]} 8. cxd4 {[%clk 0:02:38.1]}
8... d5 {[%clk 0:02:27.9]} 9. e5 {[%clk 0:02:38.4]} 9... Ne4 {[%clk 0:02:27.8]}
10. Nc3 {[%clk 0:02:27.8]} 10... Nxc3 {[%clk 0:02:08.7]} 11. bxc3 {[%clk
0:02:27.8]} 11... Na5 {[%clk 0:02:04.9]} 12. Ba3 {[%clk 0:01:51.7]} 12... Bd7
{[%clk 0:01:29.1]} 13. Bd3 {[%clk 0:01:33.8]} 13... Rc8 {[%clk 0:01:27]} 14. Qd2
{[%clk 0:01:14.3]} 14... Bg4 {[%clk 0:00:58.9]} 15. Qg5 {[%clk 0:01:00.5]} 15...
Re8 {[%clk 0:00:19.5]} 16. Qxg4 {[%clk 0:00:56.1]} 16... Rxc3 {[%clk 0:00:19.1]}
17. e6 {[%clk 0:00:40.2]} 17... f5 {[%clk 0:00:13.9]} 18. Bxf5 {[%clk
0:00:40.3]} 18... gxf5 {[%clk 0:00:13.7]} 19. Qh5 {[%clk 0:00:24.1]} 19... Rxa3
{[%clk 0:00:05]} 20. Ng5 {[%clk 0:00:24.3]} 20... h6 {[%clk 0:00:03.9]} 21. Nf7
{[%clk 0:00:18.9]} 21... Qb6 {[%clk 0:00:04]} 22. Nxh6+ {[%clk 0:00:10.8]} 22...
Bxh6 {[%clk 0:00:04.3]} 23. Qxh6 {[%clk 0:00:10.7]} 23... Rf8 {[%clk 0:00:03]}
24. Qg5+ {[%clk 0:00:07.7]} 24... Kh8 {[%clk 0:00:03.1]} 25. Qh4+ {[%clk
0:00:06.3]} 25... Kg8 {[%clk 0:00:03.2]} 26. Qg5+ {[%clk 0:00:07]} 26... Kh8
{[%clk 0:00:03.3]} 27. Qh4+ {[%clk 0:00:07.8]} 27... Kg8 {[%clk 0:00:04]} 28.
Qxe7 {[%clk 0:00:08.7]} 28... Qd8 {[%clk 0:00:03.6]} 29. Qxa3 {[%clk 0:00:06.3]}
29... Nc4 {[%clk 0:00:02.6]} 30. Qg3+ {[%clk 0:00:06.4]} 30... Kh8 {[%clk
0:00:02.4]} 31. e7 {[%clk 0:00:07.3]} 1-0

[Event "Late-Titled-Tuesday-Blitz-October-17-2023"]
[Site "Chess.com"]
[Date "2023.10.17"]
[Round "8"]
[White "frederiksvane"]
[Black "ozates"]
[Result "1-0"]
[WhiteElo "2880"]
[BlackElo "2712"]
[TimeControl "180+1"]
[EndTime "15:25:08 PDT"]
[Termination "frederiksvane won on time"]

1. g3 {[%clk 0:03:00.9]} 1... c5 {[%clk 0:02:59.9]} 2. Bg2 {[%clk 0:03:00.9]}
2... Nc6 {[%clk 0:03:00.7]} 3. c4 {[%clk 0:02:58.9]} 3... g6 {[%clk 0:03:00.9]}
4. Nf3 {[%clk 0:02:58.9]} 4... Bg7 {[%clk 0:03:01.6]} 5. Nc3 {[%clk 0:02:59.6]}
5... d6 {[%clk 0:03:00.4]} 6. O-O {[%clk 0:02:59.2]} 6... e5 {[%clk 0:03:00.5]}
7. d3 {[%clk 0:02:58]} 7... Nge7 {[%clk 0:03:00.2]} 8. a3 {[%clk 0:02:58.7]}
8... O-O {[%clk 0:03:00.8]} 9. Rb1 {[%clk 0:02:59.4]} 9... a5 {[%clk 0:03:01]}
10. Bg5 {[%clk 0:02:59.8]} 10... Be6 {[%clk 0:02:56.2]} 11. Ne1 {[%clk
0:02:50.6]} 11... Rb8 {[%clk 0:02:53.3]} 12. Nc2 {[%clk 0:02:46.8]} 12... f6
{[%clk 0:02:50.6]} 13. Be3 {[%clk 0:02:47.1]} 13... f5 {[%clk 0:02:39.5]} 14.
Bg5 {[%clk 0:02:44.9]} 14... h6 {[%clk 0:02:11.7]} 15. Bxe7 {[%clk 0:02:44.9]}
15... Qxe7 {[%clk 0:02:12.3]} 16. Nd5 {[%clk 0:02:42]} 16... Qf7 {[%clk
0:02:12.4]} 17. b4 {[%clk 0:02:42.6]} 17... cxb4 {[%clk 0:02:12.7]} 18. axb4
{[%clk 0:02:43.5]} 18... axb4 {[%clk 0:02:10.1]} 19. Ncxb4 {[%clk 0:02:42.8]}
19... g5 {[%clk 0:02:07.6]} 20. Nb6 {[%clk 0:02:04.2]} 20... Nd4 {[%clk
0:02:02.7]} 21. e3 {[%clk 0:02:00.3]} 21... Nc6 {[%clk 0:02:02.5]} 22. Nxc6
{[%clk 0:01:59.4]} 22... bxc6 {[%clk 0:02:02.5]} 23. Bxc6 {[%clk 0:02:00.2]}
23... f4 {[%clk 0:01:45.4]} 24. Bd5 {[%clk 0:01:36.3]} 24... f3 {[%clk 0:01:19]}
25. Kh1 {[%clk 0:01:36.3]} 25... Qf5 {[%clk 0:00:47.6]} 26. Rg1 {[%clk
0:01:30.6]} 26... h5 {[%clk 0:00:40.4]} 27. Bxe6+ {[%clk 0:01:25.4]} 27... Qxe6
{[%clk 0:00:39.4]} 28. Nd5 {[%clk 0:01:26.1]} 28... e4 {[%clk 0:00:34.8]} 29.
Qc2 {[%clk 0:01:01.6]} 29... Rxb1 {[%clk 0:00:22.8]} 30. Qxb1 {[%clk 0:01:02.5]}
30... exd3 {[%clk 0:00:13.8]} 31. Qxd3 {[%clk 0:01:03.4]} 31... Rb8 {[%clk
0:00:11.7]} 32. Nc7 {[%clk 0:00:52.2]} 32... Qe5 {[%clk 0:00:07.2]} 33. Nb5
{[%clk 0:00:45.8]} 33... Rd8 {[%clk 0:00:04.4]} 34. g4 {[%clk 0:00:41.7]} 34...
h4 {[%clk 0:00:03.3]} 35. h3 {[%clk 0:00:33.8]} 35... d5 {[%clk 0:00:03.8]} 36.
Rd1 {[%clk 0:00:30.7]} 36... d4 {[%clk 0:00:01.8]} 37. Nxd4 {[%clk 0:00:28.6]}
37... Qd6 {[%clk 0:00:01.5]} 38. Qf5 {[%clk 0:00:25.9]} 1-0

[Event "Late-Titled-Tuesday-Blitz-October-17-2023"]
[Site "Chess.com"]
[Date "2023.10.17"]
[Round "8"]
[White "Laico"]
[Black "kai_nov"]
[Result "1-0"]
[WhiteElo "2431"]
[BlackElo "2282"]
[TimeControl "180+1"]
[EndTime "15:25:11 PDT"]
[Termination "Laico won on time"]

1. e4 {[%clk 0:02:13.2]} 1... c5 {[%clk 0:02:57.7]} 2. Nc3 {[%clk 0:02:13.7]}
2... Nc6 {[%clk 0:02:57.2]} 3. f4 {[%clk 0:02:14.3]} 3... g6 {[%clk 0:02:56.2]}
4. Nf3 {[%clk 0:02:15]} 4... Bg7 {[%clk 0:02:56.1]} 5. Bb5 {[%clk 0:02:15.7]}
5... Nd4 {[%clk 0:02:51.8]} 6. O-O {[%clk 0:02:15.9]} 6... Nf6 {[%clk
0:02:47.4]} 7. e5 {[%clk 0:02:14.6]} 7... Nh5 {[%clk 0:02:34.4]} 8. Bc4 {[%clk
0:02:12.8]} 8... O-O {[%clk 0:02:23.1]} 9. d3 {[%clk 0:02:07.3]} 9... d6 {[%clk
0:02:16.4]} 10. exd6 {[%clk 0:01:21.8]} 10... Qxd6 {[%clk 0:02:17.3]} 11. Ne4
{[%clk 0:01:16.1]} 11... Qc7 {[%clk 0:02:10.8]} 12. Ne5 {[%clk 0:01:07.7]} 12...
Be6 {[%clk 0:01:46.7]} 13. c3 {[%clk 0:00:50]} 13... Bxc4 {[%clk 0:01:18.7]} 14.
cxd4 {[%clk 0:00:50.1]} 14... Bd5 {[%clk 0:01:03.2]} 15. Nxc5 {[%clk 0:00:31]}
15... Nf6 {[%clk 0:00:41]} 16. Qe2 {[%clk 0:00:29.3]} 16... b6 {[%clk 0:00:39]}
17. Ne4 {[%clk 0:00:27.5]} 17... Qb7 {[%clk 0:00:37.9]} 18. Re1 {[%clk
0:00:20.5]} 18... Rac8 {[%clk 0:00:31.1]} 19. Nc3 {[%clk 0:00:17.6]} 19... Be6
{[%clk 0:00:25.8]} 20. Be3 {[%clk 0:00:14.1]} 20... Rfd8 {[%clk 0:00:25]} 21.
Rac1 {[%clk 0:00:13.1]} 21... Bf5 {[%clk 0:00:21.6]} 22. Bf2 {[%clk 0:00:11.4]}
22... h5 {[%clk 0:00:20.1]} 23. Bh4 {[%clk 0:00:11.3]} 23... b5 {[%clk
0:00:15.7]} 24. Ne4 {[%clk 0:00:04.1]} 24... Rxd4 {[%clk 0:00:13]} 25. Ng5
{[%clk 0:00:03]} 25... Rxc1 {[%clk 0:00:07.5]} 26. Rxc1 {[%clk 0:00:02.4]} 26...
Rxf4 {[%clk 0:00:05.5]} 27. Bg3 {[%clk 0:00:01.2]} 1-0